fUSD/lending_fUSD_20260624
["ID","MTS","AMOUNT","RATE_DAILY","PERIOD"]
[426287012,1782246641000,-10199.18662003,0.000166,2]
[426287040,1782246641000,-1080.61,0.00017425,2]
[426287070,1782246641000,-152.29892501,0.00018074,2]
[426287046,1782246641000,-500.0,0.00017767,2]
[426287077,1782246641000,-1046.13,0.00018082,2]
[426287084,1782246641000,-352.93431289,0.000182,2]
[426287083,1782246641000,-206.59261552,0.000182,2]
[426287078,1782246641000,-460.0,0.00018082,2]
[426287081,1782246641000,-169.87728653,0.000182,2]
[426287079,1782246641000,-10199.18662003,0.000181,2]
[426287080,1782246641000,-150.0,0.00018192,2]
[426287086,1782246641000,-170.3844487,0.000182,2]
[426287085,1782246641000,-169.85301842,0.000182,2]
[426287096,1782246641000,-3648.0,0.00018331,2]
[426287087,1782246641000,-174.52983839,0.000182,2]
[426287088,1782246641000,-513.09243856,0.000182,2]
[426287082,1782246641000,-180.57188551,0.000182,2]
[426287089,1782246641000,-150.0,0.00018217,2]
[426287091,1782246641000,-183.0,0.0001829,2]
[426287092,1782246641000,-10199.18662003,0.000183,2]
[426287095,1782246641000,-6083.0,0.00018331,2]
[426287094,1782246641000,-150.0,0.0001831,2]
[426287093,1782246641000,-500.0,0.000183,2]
[426287099,1782246641000,-352.93431289,0.000184,2]
[426287103,1782246641000,-154.37421804,0.000184,2]
[426287098,1782246641000,-206.59261552,0.000184,2]
[426287100,1782246641000,-169.85301842,0.000184,2]
[426287101,1782246641000,-174.52983839,0.000184,2]
[426287102,1782246641000,-513.09243856,0.000184,2]
[426287042,1782246641000,-790.01,0.00017586,2]
[426287090,1782246641000,-1127.0,0.00018251,2]
[426287076,1782246641000,-1166.25,0.00018082,2]
[426287097,1782246641000,-150.0,0.00018361,2]
[426287074,1782246641000,-150.0,0.00018074,2]
[426287073,1782246641000,-150.0,0.00018074,2]
[426287048,1782246641000,-250.0,0.00017808,6]
[426287050,1782246641000,-1243.65868844,0.0001789,2]
[426287051,1782246641000,-10199.18662003,0.000179,2]
[426287052,1782246641000,-163.66062104,0.00017914,2]
[426287057,1782246641000,-180.57188551,0.00018,2]
[426287049,1782246641000,-1798.80895522,0.00017873,2]
[426287054,1782246641000,-24454.5,0.00018,2]
[426287058,1782246641000,-206.59261552,0.00018,2]
[426287053,1782246641000,-169.87728653,0.00018,2]
[426287056,1782246641000,-205.98672193,0.00018,2]
[426287059,1782246641000,-352.93431289,0.00018,2]
[426287061,1782246641000,-350.0,0.00018,2]
[426287055,1782246641000,-237.34123628,0.00018,2]
[426287060,1782246641000,-48326.44240729,0.00018,2]
[426287072,1782246641000,-150.0,0.00018074,2]
[426287071,1782246641000,-153.25479407,0.00018074,2]
[426287067,1782246641000,-150.0,0.00018074,2]
[426287075,1782246641000,-1012.61,0.00018082,2]
[426287069,1782246641000,-150.0,0.00018074,2]
[426287068,1782246641000,-150.0,0.00018074,2]
[426287066,1782246641000,-153.41819571,0.00018074,2]
[426287063,1782246641000,-170.3844487,0.00018,2]
[426287065,1782246641000,-513.09243856,0.00018,2]
[426287064,1782246641000,-174.52983839,0.00018,2]
[426287062,1782246641000,-169.85301842,0.00018,2]
[426287104,1782246641000,-960.5,0.0001841,2]
[426287126,1782246642000,-150.0,0.00018665,4]
[426287127,1782246642000,-206.59261552,0.000187,2]
[426287129,1782246642000,-513.09243856,0.000187,2]
[426287135,1782246642000,-500.0,0.00018849,2]
[426287136,1782246642000,-249.0,0.00018868,2]
[426287133,1782246642000,-150.0,0.00018791,4]
[426287134,1782246642000,-790.01,0.00018841,2]
[426287131,1782246642000,-150.0,0.00018743,4]
[426287132,1782246642000,-150.0,0.00018783,4]
[426287141,1782246642000,-460.0,0.00018904,2]
[426287139,1782246642000,-601.12082225,0.000189,2]
[426287138,1782246642000,-10199.18662003,0.000189,2]
[426287142,1782246642000,-150.0,0.00018935,4]
[426287143,1782246642000,-1361.0,0.00018945,2]
[426287140,1782246642000,-150.0,0.00018901,4]
[426287145,1782246642000,-1229.0,0.00018945,2]
[426287128,1782246642000,-352.93431289,0.000187,2]
[426287155,1782246642000,-151.0,0.00018969,2]
[426287137,1782246642000,-150.0,0.00018877,4]
[426287125,1782246642000,-150.0,0.00018648,4]
[426287111,1782246642000,-513.09243856,0.000185,2]
[426287122,1782246642000,-306.34,0.00018608,2]
[426287156,1782246642000,-578.20924308,0.00018969,2]
[426287105,1782246642000,-1865.36488656,0.00018421,2]
[426287106,1782246642000,-150.0,0.00018428,2]
[426287107,1782246642000,-202.99918861,0.00018454,2]
[426287109,1782246642000,-206.59261552,0.000185,2]
[426287108,1782246642000,-150.0,0.00018476,2]
[426287118,1782246642000,-306.34,0.00018608,2]
[426287116,1782246642000,-306.34,0.00018608,2]
[426287114,1782246642000,-1917.49,0.00018533,2]
[426287115,1782246642000,-150.0,0.00018546,4]
[426287110,1782246642000,-352.93431289,0.000185,2]
[426287113,1782246642000,-150.0,0.00018504,4]
[426287117,1782246642000,-306.34,0.00018608,2]
[426287112,1782246642000,-10199.18662003,0.000185,2]
[426287130,1782246642000,-10199.18662003,0.000187,2]
[426287120,1782246642000,-306.34,0.00018608,2]
[426287119,1782246642000,-306.34,0.00018608,2]
[426287121,1782246642000,-306.34,0.00018608,2]
[426287123,1782246642000,-500.0,0.00018643,2]
[426287124,1782246642000,-2000.0,0.00018643,2]
[426287144,1782246642000,-383.0,0.00018945,2]
[426287159,1782246642000,-151.0,0.00018969,2]
[426287152,1782246642000,-527.32278436,0.00018969,2]
[426287175,1782246642000,-500.0,0.00018969,2]
[426287171,1782246642000,-151.0,0.00018969,2]
[426287176,1782246642000,-151.0,0.00018969,2]
[426287177,1782246642000,-670.58624095,0.00018969,2]
[426287178,1782246642000,-151.0,0.00018969,2]
[426287179,1782246642000,-1934.38338736,0.00018969,2]
[426287180,1782246642000,-500.0,0.00018969,2]
[426287182,1782246642000,-151.0,0.00018969,2]
[426287181,1782246642000,-500.0,0.00018969,2]
[426287183,1782246642000,-152.0,0.00018969,2]
[426287185,1782246642000,-500.0,0.00018969,2]
[426287184,1782246642000,-194.72792766,0.00018969,2]
[426287186,1782246642000,-151.0,0.00018969,2]
[426287188,1782246642000,-151.0,0.00018969,2]
[426287187,1782246642000,-500.0,0.00018969,2]
[426287189,1782246642000,-152.0,0.00018969,2]
[426287146,1782246642000,-500.0,0.00018969,2]
[426287190,1782246642000,-500.0,0.00018969,2]
[426287195,1782246642000,-151.0,0.00018969,2]
[426287173,1782246642000,-500.0,0.00018969,2]
[426287174,1782246642000,-151.0,0.00018969,2]
[426287198,1782246642000,-500.0,0.00018969,2]
[426287170,1782246642000,-500.0,0.00018969,2]
[426287172,1782246642000,-286.15596075,0.00018969,2]
[426287150,1782246642000,-158.19471084,0.00018969,2]
[426287153,1782246642000,-200.0,0.00018969,2]
[426287151,1782246642000,-151.0,0.00018969,2]
[426287154,1782246642000,-151.0,0.00018969,2]
[426287149,1782246642000,-1915.47834585,0.00018969,2]
[426287147,1782246642000,-217.15233878,0.00018969,2]
[426287157,1782246642000,-8882.6885148,0.00018969,2]
[426287158,1782246642000,-157.41989846,0.00018969,2]
[426287148,1782246642000,-153.17393377,0.00018969,2]
[426287163,1782246642000,-151.0,0.00018969,2]
[426287161,1782246642000,-151.0,0.00018969,2]
[426287169,1782246642000,-611.85552793,0.00018969,2]
[426287165,1782246642000,-500.0,0.00018969,2]
[426287167,1782246642000,-151.0,0.00018969,2]
[426287166,1782246642000,-500.0,0.00018969,2]
[426287164,1782246642000,-500.0,0.00018969,2]
[426287160,1782246642000,-174.61919141,0.00018969,2]
[426287162,1782246642000,-500.0,0.00018969,2]
[426287168,1782246642000,-500.0,0.00018969,2]
[426287226,1782246643000,-151.0,0.00018969,2]
[426287221,1782246643000,-151.0,0.00018969,2]
[426287222,1782246643000,-151.0,0.00018969,2]
[426287223,1782246643000,-152.0,0.00018969,2]
[426287225,1782246643000,-151.0,0.00018969,2]
[426287224,1782246643000,-500.0,0.00018969,2]
[426287235,1782246643000,-151.0,0.00018969,2]
[426287231,1782246643000,-152.0,0.00018969,2]
[426287228,1782246643000,-151.0,0.00018969,2]
[426287230,1782246643000,-151.0,0.00018969,2]
[426287233,1782246643000,-500.0,0.00018969,2]
[426287229,1782246643000,-500.0,0.00018969,2]
[426287234,1782246643000,-152.0,0.00018969,2]
[426287232,1782246643000,-151.0,0.00018969,2]
[426287236,1782246643000,-500.0,0.00018969,2]
[426287217,1782246643000,-151.0,0.00018969,2]
[426287227,1782246643000,-152.0,0.00018969,2]
[426287218,1782246643000,-151.0,0.00018969,2]
[426287207,1782246643000,-152.0,0.00018969,2]
[426287214,1782246643000,-500.0,0.00018969,2]
[426287199,1782246643000,-151.0,0.00018969,2]
[426287200,1782246643000,-152.0,0.00018969,2]
[426287202,1782246643000,-151.0,0.00018969,2]
[426287201,1782246643000,-500.0,0.00018969,2]
[426287204,1782246643000,-152.0,0.00018969,2]
[426287205,1782246643000,-500.0,0.00018969,2]
[426287206,1782246643000,-151.0,0.00018969,2]
[426287219,1782246643000,-500.0,0.00018969,2]
[426287203,1782246643000,-151.0,0.00018969,2]
[426287209,1782246643000,-500.0,0.00018969,2]
[426287210,1782246643000,-151.0,0.00018969,2]
[426287213,1782246643000,-152.0,0.00018969,2]
[426287211,1782246643000,-500.0,0.00018969,2]
[426287212,1782246643000,-151.0,0.00018969,2]
[426287215,1782246643000,-500.0,0.00018969,2]
[426287216,1782246643000,-152.0,0.00018969,2]
[426287208,1782246643000,-500.0,0.00018969,2]
[426287238,1782246643000,-152.0,0.00018969,2]
[426287220,1782246643000,-152.0,0.00018969,2]
[426287241,1782246643000,-151.0,0.00018969,2]
[426287266,1782246643000,-151.0,0.00019134,2]
[426287259,1782246643000,-150.0,0.00019078,4]
[426287268,1782246643000,-150.0,0.00019137,4]
[426287276,1782246643000,-2300.0,0.00019215,5]
[426287267,1782246643000,-151.0,0.00019134,2]
[426287271,1782246643000,-153.17393377,0.00019189,2]
[426287269,1782246643000,-1127.0,0.00019163,2]
[426287270,1782246643000,-250.0,0.00019178,8]
[426287272,1782246643000,-151.0,0.00019189,2]
[426287273,1782246643000,-151.0,0.00019189,2]
[426287275,1782246643000,-2062.0,0.00019215,5]
[426287280,1782246643000,-151.0,0.00019244,2]
[426287279,1782246643000,-153.17393377,0.00019244,2]
[426287282,1782246643000,-151.0,0.00019244,2]
[426287278,1782246643000,-1915.47834585,0.00019243,2]
[426287277,1782246643000,-150.0,0.00019222,4]
[426287237,1782246643000,-151.0,0.00018969,2]
[426287265,1782246643000,-153.17393377,0.00019134,2]
[426287264,1782246643000,-151.0,0.00019079,2]
[426287274,1782246643000,-10199.18662003,0.000192,2]
[426287261,1782246643000,-150.0,0.00019078,4]
[426287263,1782246643000,-151.0,0.00019079,2]
[426287242,1782246643000,-151.0,0.00018969,2]
[426287239,1782246643000,-151.0,0.00018969,2]
[426287244,1782246643000,-5175.63956764,0.00019,2]
[426287245,1782246643000,-160.0,0.00019,2]
[426287243,1782246643000,-151.0,0.00018969,2]
[426287247,1782246643000,-10199.18662003,0.00019,2]
[426287246,1782246643000,-2524.2666405,0.00019,2]
[426287240,1782246643000,-151.0,0.00018969,2]
[426287248,1782246643000,-1538.77,0.00019,2]
[426287256,1782246643000,-151.0,0.00019024,2]
[426287249,1782246643000,-168.65295439,0.0001901,2]
[426287251,1782246643000,-150.0,0.00019019,4]
[426287252,1782246643000,-153.17393377,0.00019024,2]
[426287255,1782246643000,-151.0,0.00019024,2]
[426287258,1782246643000,-150.0,0.00019078,4]
[426287250,1782246643000,-365.95417538,0.0001901,7]
[426287262,1782246643000,-153.17393377,0.00019079,2]
[426287318,1782246644000,-9211.34798984,0.00019517,2]
[426287320,1782246644000,-181.08010149,0.00019517,2]
[426287316,1782246644000,-200.0,0.00019517,2]
[426287315,1782246644000,-1915.47834585,0.00019517,2]
[426287312,1782246644000,-518.5,0.00019517,2]
[426287319,1782246644000,-157.41989852,0.00019517,2]
[426287317,1782246644000,-151.0,0.00019517,2]
[426287321,1782246644000,-611.85552793,0.00019517,2]
[426287314,1782246644000,-527.32278436,0.00019517,2]
[426287322,1782246644000,-151.0,0.00019517,2]
[426287323,1782246644000,-2005.9555727,0.00019517,2]
[426287335,1782246644000,-460.0,0.00019726,2]
[426287331,1782246644000,-151.0,0.00019629,2]
[426287326,1782246644000,-151.0,0.00019519,2]
[426287325,1782246644000,-151.0,0.00019519,2]
[426287330,1782246644000,-150.0,0.0001961,4]
[426287328,1782246644000,-151.0,0.00019574,2]
[426287329,1782246644000,-10199.18662003,0.000196,2]
[426287332,1782246644000,-151.0,0.00019629,2]
[426287333,1782246644000,-150.0,0.00019652,4]
[426287334,1782246644000,-150.0,0.00019681,4]
[426287339,1782246644000,-10199.18662003,0.000198,2]
[426287313,1782246644000,-158.19471085,0.00019517,2]
[426287324,1782246644000,-201.93286098,0.00019517,2]
[426287311,1782246644000,-150.0,0.00019508,4]
[426287291,1782246644000,-310.0,0.000193,2]
[426287309,1782246644000,-151.0,0.00019464,2]
[426287286,1782246644000,-183.0,0.0001929,2]
[426287284,1782246644000,-150.0,0.00019255,4]
[426287287,1782246644000,-153.17393377,0.00019299,2]
[426287285,1782246644000,-150.0,0.00019279,4]
[426287289,1782246644000,-151.0,0.00019299,2]
[426287294,1782246644000,-153.17393377,0.00019354,2]
[426287336,1782246644000,-150.0,0.00019728,4]
[426287292,1782246644000,-1000.0,0.000193,2]
[426287290,1782246644000,-151.0,0.00019299,2]
[426287297,1782246644000,-182.68,0.00019355,7]
[426287295,1782246644000,-151.0,0.00019354,2]
[426287310,1782246644000,-150.0,0.00019492,4]
[426287298,1782246644000,-150.0,0.00019365,4]
[426287293,1782246644000,-316.0,0.000193,2]
[426287299,1782246644000,-150.0,0.00019373,4]
[426287301,1782246644000,-10199.18662003,0.000194,2]
[426287303,1782246644000,-151.0,0.00019409,2]
[426287307,1782246644000,-153.17393385,0.00019464,2]
[426287304,1782246644000,-151.0,0.00019409,2]
[426287300,1782246644000,-266475.67078589,0.000194,2]
[426287305,1782246644000,-150.0,0.00019413,4]
[426287306,1782246644000,-500.0,0.00019415,2]
[426287302,1782246644000,-153.17393377,0.00019409,2]
[426287308,1782246644000,-151.0,0.00019464,2]
[426287296,1782246644000,-151.0,0.00019354,2]
[426287338,1782246644000,-150.0,0.00019795,4]
[426287327,1782246644000,-151.0,0.00019574,2]
[426287340,1782246644000,-150.0,0.00019846,4]
[426287372,1782246644000,-527.32278436,0.00020065,2]
[426287369,1782246644000,-461.0,0.0002,2]
[426287364,1782246644000,-1545.0,0.0002,2]
[426287366,1782246644000,-214.5,0.0002,2]
[426287365,1782246644000,-692.0,0.0002,2]
[426287380,1782246644000,-2080.17592889,0.00020065,2]
[426287381,1782246644000,-209.40437684,0.00020065,2]
[426287374,1782246644000,-1915.47834585,0.00020065,2]
[426287386,1782246644000,-270.09988741,0.00020082,4]
[426287376,1782246644000,-9501.05569064,0.00020065,2]
[426287383,1782246644000,-211.62669213,0.00020082,4]
[426287368,1782246644000,-344.0,0.0002,2]
[426287379,1782246644000,-151.0,0.00020065,2]
[426287378,1782246644000,-611.85552793,0.00020065,2]
[426287375,1782246644000,-200.0,0.00020065,2]
[426287384,1782246644000,-175.17638505,0.00020082,4]
[426287385,1782246644000,-274.34968882,0.00020082,4]
[426287387,1782246644000,-196.60476605,0.00020082,4]
[426287391,1782246644000,-151.0,0.00020087,2]
[426287388,1782246644000,-151.0,0.00020087,2]
[426287392,1782246644000,-411212.0614873,0.00020087,2]
[426287389,1782246644000,-288.535056,0.00020087,2]
[426287337,1782246644000,-1915.47834585,0.00019791,2]
[426287390,1782246644000,-151.0,0.00020087,2]
[426287377,1782246644000,-187.78006524,0.00020065,2]
[426287362,1782246644000,-10000.0,0.0002,2]
[426287382,1782246644000,-295.303707,0.00020082,4]
[426287373,1782246644000,-151.0,0.00020065,2]
[426287341,1782246644000,-150.0,0.00019939,4]
[426287347,1782246644000,-274.74034525,0.0002,2]
[426287361,1782246644000,-151.0,0.0002,2]
[426287342,1782246644000,-14356.92572432,0.0001995,15]
[426287348,1782246644000,-302.07358099,0.0002,2]
[426287343,1782246644000,-193981.6767134,0.00019951,2]
[426287344,1782246644000,-150.0,0.00019964,4]
[426287349,1782246644000,-323.3044874,0.0002,2]
[426287345,1782246644000,-2000.0,0.0001999,7]
[426287353,1782246644000,-250.0,0.0002,2]
[426287350,1782246644000,-400.0,0.0002,2]
[426287352,1782246644000,-271.0,0.0002,2]
[426287346,1782246644000,-500.0,0.00019997,2]
[426287358,1782246644000,-15880.22,0.0002,2]
[426287359,1782246644000,-1058.0,0.0002,2]
[426287355,1782246644000,-40597.0,0.0002,2]
[426287351,1782246644000,-1072.0,0.0002,2]
[426287367,1782246644000,-680.0,0.0002,2]
[426287356,1782246644000,-288.67407521,0.0002,2]
[426287357,1782246644000,-248.0,0.0002,2]
[426287370,1782246644000,-3448.15,0.0002,2]
[426287354,1782246644000,-201.23757349,0.0002,2]
[426287371,1782246644000,-537.6845,0.00020065,2]
[426287360,1782246644000,-10199.18662003,0.0002,2]
[426287363,1782246644000,-365.0,0.0002,2]
[426287433,1782246645000,-1215.40161258,0.00021,2]
[426287424,1782246645000,-2157.14243826,0.00020613,2]
[426287434,1782246645000,-200.59528808,0.00021,2]
[426287428,1782246645000,-323.3044874,0.000208,2]
[426287427,1782246645000,-274.74034525,0.000208,2]
[426287430,1782246645000,-1915.47834585,0.00020887,2]
[426287425,1782246645000,-217.15233878,0.00020613,2]
[426287429,1782246645000,-10199.18662003,0.000208,2]
[426287426,1782246645000,-767.0,0.000207,2]
[426287435,1782246645000,-1072.0,0.00021,2]
[426287432,1782246645000,-4862.68721847,0.00021,2]
[426287442,1782246645000,-151.0,0.00021,2]
[426287440,1782246645000,-1058.0,0.00021,2]
[426287437,1782246645000,-250.0,0.00021,2]
[426287439,1782246645000,-248.0,0.00021,2]
[426287445,1782246645000,-15000.0,0.00021,2]
[426287438,1782246645000,-335.22671807,0.00021,2]
[426287443,1782246645000,-15000.0,0.00021,2]
[426287444,1782246645000,-6111.0,0.00021,2]
[426287447,1782246645000,-365.0,0.00021,2]
[426287446,1782246645000,-6111.0,0.00021,2]
[426287441,1782246645000,-10199.18662003,0.00021,2]
[426287449,1782246645000,-692.0,0.00021,2]
[426287460,1782246645000,-527.32278436,0.00021161,2]
[426287419,1782246645000,-200.0,0.00020613,2]
[426287436,1782246645000,-271.0,0.00021,2]
[426287414,1782246645000,-680.0,0.00020606,2]
[426287394,1782246645000,-1471.34,0.000201,7]
[426287413,1782246645000,-10199.18662003,0.000206,2]
[426287459,1782246645000,-578.20924308,0.00021161,2]
[426287395,1782246645000,-189.33,0.00020107,2]
[426287396,1782246645000,-596.81222315,0.00020121,2]
[426287393,1782246645000,-790.01,0.00020096,2]
[426287398,1782246645000,-323.3044874,0.000202,2]
[426287397,1782246645000,-274.74034525,0.000202,2]
[426287402,1782246645000,-183.0,0.0002029,2]
[426287403,1782246645000,-1538.77,0.000203,2]
[426287399,1782246645000,-10199.18662003,0.000202,2]
[426287405,1782246645000,-960.5,0.00020381,2]
[426287406,1782246645000,-274.74034525,0.000204,2]
[426287409,1782246645000,-250.0,0.00020548,10]
[426287400,1782246645000,-167.31875847,0.0002025,2]
[426287408,1782246645000,-10199.18662003,0.000204,2]
[426287401,1782246645000,-789.47036525,0.00020274,2]
[426287407,1782246645000,-323.3044874,0.000204,2]
[426287404,1782246645000,-1915.47834585,0.00020339,2]
[426287410,1782246645000,-500.0,0.00020597,2]
[426287421,1782246645000,-194.72792766,0.00020613,2]
[426287411,1782246645000,-274.74034525,0.000206,2]
[426287415,1782246645000,-785.0,0.00020606,2]
[426287416,1782246645000,-557.5788265,0.00020613,2]
[426287422,1782246645000,-611.85552793,0.00020613,2]
[426287423,1782246645000,-151.0,0.00020613,2]
[426287420,1782246645000,-1915.47834585,0.00020613,2]
[426287412,1782246645000,-323.3044874,0.000206,2]
[426287417,1782246645000,-527.32278436,0.00020613,2]
[426287418,1782246645000,-151.0,0.00020613,2]
[426287448,1782246645000,-1545.0,0.00021,2]
[426287431,1782246645000,-785.0,0.00020939,2]
[426287453,1782246645000,-344.0,0.00021,2]
[426287486,1782246645000,-335.22671807,0.000214,2]
[426287487,1782246645000,-224.16,0.00021421,2]
[426287489,1782246645000,-1915.47834585,0.00021435,2]
[426287485,1782246645000,-790.01,0.00021351,2]
[426287488,1782246645000,-530.0,0.00021422,2]
[426287491,1782246645000,-2000.0,0.00021446,2]
[426287492,1782246645000,-500.0,0.0002147,2]
[426287490,1782246645000,-500.0,0.00021446,2]
[426287494,1782246645000,-10199.18662003,0.000215,2]
[426287493,1782246645000,-1000.0,0.0002147,2]
[426287495,1782246645000,-767.0,0.00021522,2]
[426287496,1782246645000,-500.0,0.0002157,2]
[426287506,1782246645000,-151.0,0.00021709,2]
[426287497,1782246645000,-1000.0,0.0002157,2]
[426287498,1782246645000,-335.22671807,0.000216,2]
[426287500,1782246645000,-3448.15,0.00021621,2]
[426287501,1782246645000,-306.18,0.00021644,4]
[426287499,1782246645000,-785.0,0.00021603,2]
[426287503,1782246645000,-695.39793187,0.00021708,2]
[426287504,1782246645000,-251.54599187,0.00021709,2]
[426287505,1782246645000,-527.32278436,0.00021709,2]
[426287502,1782246645000,-599.60298507,0.00021708,2]
[426287509,1782246645000,-209.40437684,0.00021709,2]
[426287507,1782246645000,-200.0,0.00021709,2]
[426287511,1782246645000,-2319.72410669,0.00021709,2]
[426287508,1782246645000,-1915.47834585,0.00021709,2]
[426287510,1782246645000,-611.85552793,0.00021709,2]
[426287484,1782246645000,-3648.0,0.00021331,2]
[426287478,1782246645000,-1022.25,0.00021273,2]
[426287450,1782246645000,-1788.83468349,0.00021,2]
[426287483,1782246645000,-6083.0,0.00021331,2]
[426287476,1782246645000,-499.83315559,0.00021215,2]
[426287452,1782246645000,-151.0,0.00021,2]
[426287455,1782246645000,-589.258295,0.00021,2]
[426287454,1782246645000,-589.258295,0.00021,2]
[426287451,1782246645000,-151.0,0.00021,2]
[426287457,1782246645000,-589.258295,0.00021,2]
[426287458,1782246645000,-461.0,0.00021,2]
[426287456,1782246645000,-589.258295,0.00021,2]
[426287463,1782246645000,-1915.47834585,0.00021161,2]
[426287462,1782246645000,-200.0,0.00021161,2]
[426287465,1782246645000,-611.85552793,0.00021161,2]
[426287464,1782246645000,-201.93286098,0.00021161,2]
[426287468,1782246645000,-151.0,0.00021161,2]
[426287461,1782246645000,-151.0,0.00021161,2]
[426287466,1782246645000,-2236.95670847,0.00021161,2]
[426287470,1782246645000,-10199.18662003,0.000212,2]
[426287481,1782246645000,-525.84,0.00021273,2]
[426287472,1782246645000,-1993.101868,0.000212,2]
[426287475,1782246645000,-680.0,0.00021212,3]
[426287482,1782246645000,-187.0,0.0002129,2]
[426287474,1782246645000,-1993.101868,0.000212,2]
[426287473,1782246645000,-1993.101868,0.000212,2]
[426287479,1782246645000,-2951.45,0.00021273,2]
[426287477,1782246645000,-785.0,0.00021271,2]
[426287471,1782246645000,-1993.101868,0.000212,2]
[426287469,1782246645000,-335.22671807,0.000212,2]
[426287467,1782246645000,-225.18697532,0.00021161,2]
[426287480,1782246645000,-49442.71,0.00021273,2]
[426287554,1782246646000,-300.0,0.000221,10]
[426287549,1782246646000,-200.0,0.00022,10]
[426287550,1782246646000,-344.0,0.00022,2]
[426287551,1782246646000,-2214.22,0.00022,2]
[426287553,1782246646000,-202.99918861,0.00022007,2]
[426287545,1782246646000,-365.0,0.00022,2]
[426287548,1782246646000,-2175.0,0.00022,2]
[426287546,1782246646000,-1545.0,0.00022,2]
[426287544,1782246646000,-151.0,0.00022,2]
[426287555,1782246646000,-530.0,0.00022107,2]
[426287552,1782246646000,-461.0,0.00022,2]
[426287547,1782246646000,-692.0,0.00022,2]
[426287556,1782246646000,-4117.78799788,0.00022222,2]
[426287580,1782246646000,-151.44105201,0.00022691,2]
[426287558,1782246646000,-151.0,0.00022257,2]
[426287561,1782246646000,-217.15233878,0.00022257,2]
[426287562,1782246646000,-611.85552793,0.00022257,2]
[426287557,1782246646000,-527.32278436,0.00022257,2]
[426287563,1782246646000,-2405.55389863,0.00022257,2]
[426287560,1782246646000,-1915.47834585,0.00022257,2]
[426287567,1782246646000,-960.5,0.00022353,2]
[426287564,1782246646000,-242.15909246,0.00022257,2]
[426287565,1782246646000,-151.0,0.00022257,2]
[426287566,1782246646000,-785.0,0.00022268,2]
[426287569,1782246646000,-151.80846406,0.00022407,2]
[426287579,1782246646000,-179.99432589,0.00022691,2]
[426287534,1782246646000,-1000.0,0.0002197,2]
[426287559,1782246646000,-200.0,0.00022257,2]
[426287539,1782246646000,-1072.0,0.00022,2]
[426287526,1782246646000,-250.0,0.00021918,12]
[426287535,1782246646000,-1915.47834585,0.00021983,2]
[426287568,1782246646000,-151.80846408,0.00022407,2]
[426287513,1782246646000,-151.0,0.00021709,2]
[426287516,1782246646000,-500.0,0.00021716,2]
[426287517,1782246646000,-249.4689752,0.00021716,2]
[426287512,1782246646000,-233.5188934,0.00021709,2]
[426287518,1782246646000,-1538.77,0.000218,2]
[426287514,1782246646000,-500.0,0.00021716,2]
[426287519,1782246646000,-680.0,0.00021818,3]
[426287521,1782246646000,-1104.49,0.0002185,2]
[426287531,1782246646000,-500.0,0.0002197,2]
[426287520,1782246646000,-2000.0,0.0002185,2]
[426287530,1782246646000,-1229.0,0.00021945,2]
[426287525,1782246646000,-178.65,0.00021918,2]
[426287524,1782246646000,-5000.0,0.00021918,2]